{"text_format":"1","workbook":"xlsx","n_sheets":9,"sheets":["Лист1","Ангелина","Рома","Ксюша","вадим","Дима","Лев","София","Мух"],"not_rendered":{"charts":0,"images":0,"macros":1,"external_links":0,"defined_names":0,"comments":0,"pivot_tables":0},"unopened":[],"bounds":{"document_bytes":16777216,"sheet_cells":100000,"rows_first":2000,"rows_last":500,"rows_between":2000,"halvings":0,"cell_chars":16384,"cell_head_chars":4096},"cells_cut":0,"cells_raw":0,"read":"whole","date_system":"1900"}

{"sheet":"Лист1","index":0,"n_rows":72,"n_cols":2,"rows_kept":72,"cut":false,"hidden":false,"merged":[]}
[]
[]
[null," А. ИГ отм. Питер                           25 "]
[null," А. ИГ отм. Питер     Anfisa Lisetskaya (None)                                      25 "]
[null," В.ВК.ЛИЧКА                                  2 "]
[null," В.ВК.ЛИЧКА           Евгения Савкина (ESaffkina)                                    2 "]
[null," В.ВК.сторис                                24 "]
[null," В.ВК.сторис          Анастасия Половинкина (None)                                  20 "]
[null," В.ВК.сторис          Надежда None (Fz_nadezhda)                                     2 "]
[null," В.ВК.сторис          Ольга Соленая (solenayaolga)                                   2 "]
[null," В.ИГ.отметки                              193 "]
[null," В.ИГ.отметки         Ekaterina Lashko (None)                                       29 "]
[null," В.ИГ.отметки         Larissa Govorova (Klarissa_G)                                 30 "]
[null," В.ИГ.отметки         Екатерина Балашиха None (None)                                 3 "]
[null," В.ИГ.отметки         Марина Пономаренко (MarinaPon2022)                            44 "]
[null," В.ИГ.отметки         Наталья None (Natalya_Reznikova)                              22 "]
[null," В.ИГ.отметки         Ольга Соленая (solenayaolga)                                  12 "]
[null," В.ИГ.отметки         Светлана С (svetlanka_vlz)                                    32 "]
[null," В.ИГ.отметки         Юлия Плешакова (None)                                         21 "]
[null," В.ИГ.сторис                                 5 "]
[null," В.ИГ.сторис          Наталия None (volzhanka_ya)                                    1 "]
[null," В.ИГ.сторис          Ольга Соленая (solenayaolga)                                   4 "]
[null," Д.иг.отметки                              212 "]
[null," Д.иг.отметки         Lelik None (olga_sherer)                                      30 "]
[null," Д.иг.отметки         Бородачева Елена (None)                                       48 "]
[null," Д.иг.отметки         Кристина None (kristina_podkorytova21)                        40 "]
[null," Д.иг.отметки         Шерер Оксана (None)                                           12 "]
[null," Д.иг.отметки         Юлия Julia (None)                                             82 "]
[null," К. ИГ. Воронеж.ком                        439 "]
[null," К. ИГ. Воронеж.ком   Ann Ann (a_n_k_i_n)                                            5 "]
[null," К. ИГ. Воронеж.ком   Ann Ann (None)                                                25 "]
[null," К. ИГ. Воронеж.ком   Anna Mitrofanskaya None (None)                                34 "]
[null," К. ИГ. Воронеж.ком   Anzhelika None (anzhelika1993)                                51 "]
[null," К. ИГ. Воронеж.ком   Elena Muraveva None (ElenaMuraveva2)                          25 "]
[null," К. ИГ. Воронеж.ком   Kamila None (KamilaMuraveva)                                  40 "]
[null," К. ИГ. Воронеж.ком   Аурика Волонтер (Aurika8515)                                   6 "]
[null," К. ИГ. Воронеж.ком   Балаева Светлана (None)                                        8 "]
[null," К. ИГ. Воронеж.ком   Елена Муравьева (None)                                        16 "]
[null," К. ИГ. Воронеж.ком   Елена Хяккинен (ElenaHiak)                                    40 "]
[null," К. ИГ. Воронеж.ком   Елена Шумская None (None)                                     84 "]
[null," К. ИГ. Воронеж.ком   Инна None (Inna01071988)                                      54 "]
[null," К. ИГ. Воронеж.ком   Татьяна Цимерман (Smirnulya_07)                               25 "]
[null," К. ИГ. Воронеж.ком   Юля None (kondratiha127349)                                    5 "]
[null," К. ИГ. Воронеж.ком   🍃Надежда Дегтярева 🍃 (nadezda_logvinova)                      21 "]
[null," К. ИГ. Воронеж.стор                         8 "]
[null," К. ИГ. Воронеж.стор  Аурика Волонтер (Aurika8515)                                   7 "]
[null," К. ИГ. Воронеж.стор  Юля None (kondratiha127349)                                    1 "]
[null," Л.ИГ.Отметки                               33 "]
[null," Л.ИГ.Отметки         Елена None (None)                                             18 "]
[null," Л.ИГ.Отметки         Оля Оля (None)                                                15 "]
[null," Л.ИГ.Рассылка                               2 "]
[null," Л.ИГ.Рассылка        Elena Kalinina (ElenaKalinina1982)                             2 "]
[null," Л.ИГ.сторис                                 2 "]
[null," Л.ИГ.сторис          Елена None (None)                                              2 "]
[null," М.ИГ.отметки                                1 "]
[null," М.ИГ.отметки         MahmuĐa None (Ummu_Soliha_MuhammadAmin)                        1 "]
[null," М.ИГ.сторис                                 1 "]
[null," М.ИГ.сторис          Zarin adminka None (None)                                      1 "]
[null," Р.ИГ сторис                                 6 "]
[null," Р.ИГ сторис          Евгения None (Evgenyamam)                                      4 "]
[null," Р.ИГ сторис          Екатерина Михайлова (None)                                     2 "]
[null," Р.ИГ.Отметки                               77 "]
[null," Р.ИГ.Отметки         Lada Dobro (None)                                             10 "]
[null," Р.ИГ.Отметки         Евгения None (Evgenyamam)                                      6 "]
[null," Р.ИГ.Отметки         Екатерина Михайлова (None)                                    11 "]
[null," Р.ИГ.Отметки         Лизавета Крючкова (LizavetaKry)                               50 "]
[null," С.отметки. укр                             25 "]
[null," С.отметки. укр       Hanna None (None)                                              3 "]
[null," С.отметки. укр       Таяна None (None)                                             12 "]
[null," С.отметки. укр       Юля None (kondratiha127349)                                   10 "]
[null," С.сторис.укр                                4 "]
[null," С.сторис.укр         Таяна None (None)                                              4 "]

{"sheet":"Ангелина","index":1,"n_rows":17,"n_cols":2,"rows_kept":17,"cut":false,"hidden":false,"merged":[]}
[]
[null,{"$f":"INDEX(Лист1!B:$B,SMALL(IF(MID(Лист1!B:B,2,1)=\"А\",ROW(Лист1!B:B),COUNTA(Лист1!B:B)+1),ROW()-ROW($B$2)+1))","v":" С.сторис.укр                                4 "}]
[null,{"$f":"INDEX(Лист1!B:$B,SMALL(IF(MID(Лист1!B:B,2,1)=\"А\",ROW(Лист1!B:B),COUNTA(Лист1!B:B)+1),ROW()-ROW($B$2)+1))","v":{"$error":"#NUM!"}}]
[null,{"$f":"INDEX(Лист1!B:$B,SMALL(IF(MID(Лист1!B:B,2,1)=\"А\",ROW(Лист1!B:B),COUNTA(Лист1!B:B)+1),ROW()-ROW($B$2)+1))","v":{"$error":"#NUM!"}}]
[null,{"$f":"INDEX(Лист1!B:$B,SMALL(IF(MID(Лист1!B:B,2,1)=\"А\",ROW(Лист1!B:B),COUNTA(Лист1!B:B)+1),ROW()-ROW($B$2)+1))","v":{"$error":"#NUM!"}}]
[null,{"$f":"INDEX(Лист1!B:$B,SMALL(IF(MID(Лист1!B:B,2,1)=\"А\",ROW(Лист1!B:B),COUNTA(Лист1!B:B)+1),ROW()-ROW($B$2)+1))","v":{"$error":"#NUM!"}}]
[null,{"$f":"INDEX(Лист1!B:$B,SMALL(IF(MID(Лист1!B:B,2,1)=\"А\",ROW(Лист1!B:B),COUNTA(Лист1!B:B)+1),ROW()-ROW($B$2)+1))","v":{"$error":"#NUM!"}}]
[null,{"$f":"INDEX(Лист1!B:$B,SMALL(IF(MID(Лист1!B:B,2,1)=\"А\",ROW(Лист1!B:B),COUNTA(Лист1!B:B)+1),ROW()-ROW($B$2)+1))","v":{"$error":"#NUM!"}}]
[null,{"$f":"INDEX(Лист1!B:$B,SMALL(IF(MID(Лист1!B:B,2,1)=\"А\",ROW(Лист1!B:B),COUNTA(Лист1!B:B)+1),ROW()-ROW($B$2)+1))","v":{"$error":"#NUM!"}}]
[null,{"$f":"INDEX(Лист1!B:$B,SMALL(IF(MID(Лист1!B:B,2,1)=\"А\",ROW(Лист1!B:B),COUNTA(Лист1!B:B)+1),ROW()-ROW($B$2)+1))","v":{"$error":"#NUM!"}}]
[null,{"$f":"INDEX(Лист1!B:$B,SMALL(IF(MID(Лист1!B:B,2,1)=\"А\",ROW(Лист1!B:B),COUNTA(Лист1!B:B)+1),ROW()-ROW($B$2)+1))","v":{"$error":"#NUM!"}}]
[null,{"$f":"INDEX(Лист1!B:$B,SMALL(IF(MID(Лист1!B:B,2,1)=\"А\",ROW(Лист1!B:B),COUNTA(Лист1!B:B)+1),ROW()-ROW($B$2)+1))","v":{"$error":"#NUM!"}}]
[null,{"$f":"INDEX(Лист1!B:$B,SMALL(IF(MID(Лист1!B:B,2,1)=\"А\",ROW(Лист1!B:B),COUNTA(Лист1!B:B)+1),ROW()-ROW($B$2)+1))","v":{"$error":"#NUM!"}}]
[null,{"$f":"INDEX(Лист1!B:$B,SMALL(IF(MID(Лист1!B:B,2,1)=\"А\",ROW(Лист1!B:B),COUNTA(Лист1!B:B)+1),ROW()-ROW($B$2)+1))","v":{"$error":"#NUM!"}}]
[null,{"$f":"INDEX(Лист1!B:$B,SMALL(IF(MID(Лист1!B:B,2,1)=\"А\",ROW(Лист1!B:B),COUNTA(Лист1!B:B)+1),ROW()-ROW($B$2)+1))","v":{"$error":"#NUM!"}}]
[null,{"$f":"INDEX(Лист1!B:$B,SMALL(IF(MID(Лист1!B:B,2,1)=\"А\",ROW(Лист1!B:B),COUNTA(Лист1!B:B)+1),ROW()-ROW($B$2)+1))","v":{"$error":"#NUM!"}}]
[null,{"$f":"INDEX(Лист1!B:$B,SMALL(IF(MID(Лист1!B:B,2,1)=\"А\",ROW(Лист1!B:B),COUNTA(Лист1!B:B)+1),ROW()-ROW($B$2)+1))","v":{"$error":"#NUM!"}}]

{"sheet":"Рома","index":2,"n_rows":15,"n_cols":2,"rows_kept":15,"cut":false,"hidden":false,"merged":[]}
[]
[null,{"$f":"INDEX(Лист1!B:$B,SMALL(IF(MID(Лист1!B:B,2,1)=\"Р\",ROW(Лист1!B:B),COUNTA(Лист1!B:B)+1),ROW()-ROW($B$2)+1))","v":" С.сторис.укр                                4 "}]
[null,{"$f":"INDEX(Лист1!B:$B,SMALL(IF(MID(Лист1!B:B,2,1)=\"Р\",ROW(Лист1!B:B),COUNTA(Лист1!B:B)+1),ROW()-ROW($B$2)+1))","v":{"$error":"#NUM!"}}]
[null,{"$f":"INDEX(Лист1!B:$B,SMALL(IF(MID(Лист1!B:B,2,1)=\"Р\",ROW(Лист1!B:B),COUNTA(Лист1!B:B)+1),ROW()-ROW($B$2)+1))","v":{"$error":"#NUM!"}}]
[null,{"$f":"INDEX(Лист1!B:$B,SMALL(IF(MID(Лист1!B:B,2,1)=\"Р\",ROW(Лист1!B:B),COUNTA(Лист1!B:B)+1),ROW()-ROW($B$2)+1))","v":{"$error":"#NUM!"}}]
[null,{"$f":"INDEX(Лист1!B:$B,SMALL(IF(MID(Лист1!B:B,2,1)=\"Р\",ROW(Лист1!B:B),COUNTA(Лист1!B:B)+1),ROW()-ROW($B$2)+1))","v":{"$error":"#NUM!"}}]
[null,{"$f":"INDEX(Лист1!B:$B,SMALL(IF(MID(Лист1!B:B,2,1)=\"Р\",ROW(Лист1!B:B),COUNTA(Лист1!B:B)+1),ROW()-ROW($B$2)+1))","v":{"$error":"#NUM!"}}]
[null,{"$f":"INDEX(Лист1!B:$B,SMALL(IF(MID(Лист1!B:B,2,1)=\"Р\",ROW(Лист1!B:B),COUNTA(Лист1!B:B)+1),ROW()-ROW($B$2)+1))","v":{"$error":"#NUM!"}}]
[null,{"$f":"INDEX(Лист1!B:$B,SMALL(IF(MID(Лист1!B:B,2,1)=\"Р\",ROW(Лист1!B:B),COUNTA(Лист1!B:B)+1),ROW()-ROW($B$2)+1))","v":{"$error":"#NUM!"}}]
[null,{"$f":"INDEX(Лист1!B:$B,SMALL(IF(MID(Лист1!B:B,2,1)=\"Р\",ROW(Лист1!B:B),COUNTA(Лист1!B:B)+1),ROW()-ROW($B$2)+1))","v":{"$error":"#NUM!"}}]
[null,{"$f":"INDEX(Лист1!B:$B,SMALL(IF(MID(Лист1!B:B,2,1)=\"Р\",ROW(Лист1!B:B),COUNTA(Лист1!B:B)+1),ROW()-ROW($B$2)+1))","v":{"$error":"#NUM!"}}]
[null,{"$f":"INDEX(Лист1!B:$B,SMALL(IF(MID(Лист1!B:B,2,1)=\"Р\",ROW(Лист1!B:B),COUNTA(Лист1!B:B)+1),ROW()-ROW($B$2)+1))","v":{"$error":"#NUM!"}}]
[null,{"$f":"INDEX(Лист1!B:$B,SMALL(IF(MID(Лист1!B:B,2,1)=\"Р\",ROW(Лист1!B:B),COUNTA(Лист1!B:B)+1),ROW()-ROW($B$2)+1))","v":{"$error":"#NUM!"}}]
[null,{"$f":"INDEX(Лист1!B:$B,SMALL(IF(MID(Лист1!B:B,2,1)=\"Р\",ROW(Лист1!B:B),COUNTA(Лист1!B:B)+1),ROW()-ROW($B$2)+1))","v":{"$error":"#NUM!"}}]
[null,{"$f":"INDEX(Лист1!B:$B,SMALL(IF(MID(Лист1!B:B,2,1)=\"Р\",ROW(Лист1!B:B),COUNTA(Лист1!B:B)+1),ROW()-ROW($B$2)+1))","v":{"$error":"#NUM!"}}]

{"sheet":"Ксюша","index":3,"n_rows":2,"n_cols":2,"rows_kept":2,"cut":false,"hidden":false,"merged":[]}
[]
[null,{"$f":"INDEX(Лист1!B:$B,SMALL(IF(MID(Лист1!B:B,3,1)=\"К\",ROW(Лист1!B:B),COUNTA(Лист1!B:B)+1),ROW()-ROW($B$2)+1))","v":" С.сторис.укр                                4 "}]

{"sheet":"вадим","index":4,"n_rows":0,"n_cols":0,"rows_kept":0,"cut":false,"hidden":false,"merged":[]}

{"sheet":"Дима","index":5,"n_rows":0,"n_cols":0,"rows_kept":0,"cut":false,"hidden":false,"merged":[]}

{"sheet":"Лев","index":6,"n_rows":0,"n_cols":0,"rows_kept":0,"cut":false,"hidden":false,"merged":[]}

{"sheet":"София","index":7,"n_rows":0,"n_cols":0,"rows_kept":0,"cut":false,"hidden":false,"merged":[]}

{"sheet":"Мух","index":8,"n_rows":0,"n_cols":0,"rows_kept":0,"cut":false,"hidden":false,"merged":[]}